bitfinex/quotes_ETHUSD_20220731
["timestamp","ask_amount","ask_price","bid_price","bid_amount"]
[1659280486188,0.04192527,1702.5,1702.4,2.95659781]
[1659280486405,0.04192527,1702.5,1702.4,5.95659781]
[1659280486613,2.527e-05,1702.5,1702.4,12.12159781]
[1659280486824,2.527e-05,1702.5,1702.4,5.95659781]
[1659280487001,2.527e-05,1702.5,1702.4,2.95659781]
[1659280487711,2.527e-05,1702.5,1702.4,0.05855109]
[1659280487896,0.58902527,1702.5,1702.4,0.05855109]
[1659280488079,2.527e-05,1702.5,1702.4,0.05855109]
[1659280489183,2.527e-05,1702.5,1702.2,3.60350484]
[1659280490105,2.527e-05,1702.5,1702.4,0.02188417]
[1659280490920,11.60302527,1702.5,1702.4,0.02188417]
[1659280493530,12.44402527,1702.5,1702.4,0.02188417]
[1659280493811,12.00302527,1702.5,1702.4,0.02188417]
[1659280494032,12.00302527,1702.5,1701.9,0.05]
[1659280494174,7.5,1702.3,1701.8,6.21289262]
[1659280494375,7.5,1702.3,1701.8,6.2162961]
[1659280494615,7.5,1702.3,1701.8,6.5162961]
[1659280494822,7.5,1702.1,1701.8,6.2162961]
[1659280495039,0.2,1702.2,1701.8,2.9811961]
[1659280495195,7.7,1702.2,1701.8,2.9811961]
[1659280495381,7.7,1702.2,1701.8,0.08314938]
[1659280495576,7.7,1702.2,1701.8,0.03314938]
[1659280495775,7.5,1702.2,1701.8,0.03314938]
[1659280496018,7.7,1702.2,1701.9,0.02161851]
[1659280496376,0.2,1702.2,1701.9,0.02161851]
[1659280496576,7.78616326,1702.3,1701.9,0.02161851]
[1659280496794,3.80016326,1702.3,1701.9,0.02161851]
[1659280497012,2.7844,1702.4,1701.9,3.21966523]
[1659280497231,3.151,1702.6,1702.0,2.89804672]
[1659280497429,3.151,1702.6,1702.0,5.89804672]
[1659280497430,3.101,1702.6,1702.0,5.89804672]
[1659280497724,7.55,1702.7,1702.1,3.19804672]
[1659280497725,0.05,1702.7,1702.1,3.19804672]
[1659280497930,18.2857,1702.8,1702.1,3.19804672]
[1659280498876,25.7857,1702.8,1702.1,3.19804672]
[1659280499040,7.5,1702.6,1702.1,0.3]
[1659280499249,7.5,1702.6,1702.0,0.02079879]
[1659280499250,7.5,1702.2,1702.0,0.02079879]
[1659280499722,14.0972,1702.3,1702.0,0.02079879]
[1659280499922,7.5,1702.2,1702.0,0.02079879]
[1659280500340,10.89827064,1702.3,1702.0,0.02079879]
[1659280500525,18.39827064,1702.3,1702.0,0.02079879]
[1659280500722,10.89827064,1702.3,1702.0,0.02079879]
[1659280501382,7.5,1702.2,1702.0,0.02079879]
[1659280501871,7.7,1702.2,1702.0,0.02079879]
[1659280502887,7.5,1702.2,1702.0,0.02079879]
[1659280503089,10.89827064,1702.3,1702.0,0.02079879]
[1659280503090,10.5832,1702.3,1702.0,0.02079879]
[1659280503295,7.7,1702.1,1702.0,0.02079879]
[1659280503513,7.9,1702.1,1702.0,0.02079879]
[1659280504409,7.5,1702.1,1702.0,0.02079879]
[1659280505624,14.2972,1702.3,1702.0,0.65279879]
[1659280505784,21.7972,1702.3,1702.0,0.65279879]
[1659280506007,21.5972,1702.3,1702.0,0.65279879]
[1659280509207,0.31507064,1702.4,1702.0,3.55084551]
[1659280509409,3.6669,1702.6,1702.1,3.52769042]
[1659280509410,2.976,1702.6,1702.1,3.52769042]
[1659280509609,7.8056,1702.7,1702.1,3.52769042]
[1659280509610,7.7556,1702.7,1702.1,3.52769042]
[1659280509842,0.05,1702.9,1702.4,7.0]
[1659280510161,0.05,1703.1,1702.5,14.36169042]
[1659280510369,7.9556,1703.3,1702.6,12.37274672]
[1659280510370,0.05,1703.2,1702.6,12.37274672]
[1659280510518,15.2556,1703.3,1702.7,9.06304672]
[1659280510722,15.2556,1703.3,1702.7,3.22769042]
[1659280510723,8.07067064,1703.3,1702.7,3.22769042]
[1659280510910,7.5,1703.1,1702.7,0.3296437]
[1659280511109,7.5,1703.1,1702.7,0.0296437]
[1659280511557,17.41987064,1703.3,1702.7,0.0296437]
[1659280511558,24.91987064,1703.3,1702.7,0.0296437]
[1659280512934,17.41987064,1703.3,1702.7,0.0296437]
[1659280513237,7.5,1703.1,1702.7,0.0296437]
[1659280513618,7.7,1703.1,1702.8,0.02139924]
[1659280513820,8.01507064,1703.1,1702.8,0.02139924]
[1659280514345,11.52907064,1703.1,1702.8,0.02139924]
[1659280514656,4.02907064,1703.1,1702.8,0.02139924]
[1659280514870,11.52907064,1703.1,1702.8,0.02139924]
[1659280515514,11.52907064,1703.1,1702.2,9.95229276]
[1659280515515,11.52907064,1703.1,1699.0,50.43590005]
[1659280515763,0.05,1702.6,1702.2,9.06304672]
[1659280515913,2.7040642,1702.7,1702.1,0.4411]
[1659280515914,10.2040642,1702.7,1702.1,0.4411]
[1659280516118,2.60694739,1702.3,1701.8,0.4412]
[1659280516732,2.60694739,1702.3,1701.5,6.6062]
[1659280517122,10.10694739,1702.3,1701.5,6.6062]
[1659280517377,2.60694739,1702.3,1701.5,6.6062]
[1659280517513,7.5,1702.1,1701.6,2.89804672]
[1659280517729,0.2,1702.1,1701.6,2.89804672]
[1659280517943,7.5,1701.8,1701.5,3.33924672]
[1659280518151,0.2,1701.9,1701.1,1.0766]
[1659280518375,7.5,1701.2,1701.0,0.05]
[1659280518516,7.5,1701.1,1700.6,0.05]
[1659280518719,7.5,1701.0,1700.3,6.6565]
[1659280518977,3.514,1701.2,1700.3,6.6065]
[1659280518978,0.05,1701.1,1700.3,6.6065]
[1659280519258,0.34471434,1701.0,1700.3,6.6065]
[1659280519416,7.5,1700.9,1700.3,6.6065]
[1659280519931,7.5,1700.9,1700.1,2.808]
[1659280519932,7.7,1700.6,1700.1,6.6566]
[1659280520136,7.7,1700.6,1700.1,6.6066]
[1659280520137,7.5,1700.6,1700.1,6.6066]
[1659280520341,0.25,1700.8,1700.3,0.00236832]
[1659280520342,0.05,1700.8,1700.3,0.00236832]
[1659280520667,7.5,1700.9,1700.3,0.00236832]
[1659280520869,0.34471434,1700.9,1700.4,0.0164483]
[1659280521056,7.5,1700.8,1700.4,0.0164483]
[1659280521221,0.34471434,1700.9,1700.4,0.0164483]
[1659280521655,7.5,1700.8,1700.4,0.0164483]
[1659280522323,7.7,1700.8,1700.4,0.0164483]
[1659280522762,0.2,1700.8,1700.4,0.0164483]
[1659280522945,7.7,1700.8,1700.4,0.0164483]
[1659280523151,0.2,1700.8,1700.4,0.0164483]
[1659280523324,7.7,1700.8,1700.4,0.0164483]
[1659280523724,7.5,1700.8,1700.4,0.0164483]
[1659280523956,0.34471434,1700.9,1700.4,0.0164483]
[1659280524756,7.5,1700.8,1700.4,0.0164483]
[1659280524962,7.84471434,1700.9,1700.5,3.93954672]
[1659280525145,7.84471434,1700.9,1700.5,0.6]
[1659280525526,0.34471434,1700.9,1700.5,0.3]
[1659280525727,7.5,1700.8,1700.4,3.5278467]
[1659280525969,0.34471434,1700.9,1700.4,3.5278467]
[1659280526132,7.5,1700.8,1700.4,3.5278467]
[1659280526544,7.5,1700.8,1700.4,0.62979998]
[1659280526764,7.5,1700.8,1700.4,0.32979998]
[1659280526974,7.5,1700.8,1700.4,0.02979998]
[1659280527334,4.05871434,1700.9,1700.4,0.02979998]
[1659280528674,7.5,1700.8,1700.4,0.02979998]
[1659280529175,7.5,1700.7,1700.4,0.02979998]
[1659280529427,0.4,1699.8,1699.6,0.29395]
[1659280529592,2.66972574,1700.1,1699.6,0.29395]
[1659280529593,3.560968,1699.7,1699.6,0.29395]
[1659280529921,7.5,1699.8,1699.0,0.88334]
[1659280530124,3.560968,1699.7,1699.0,0.61846736]
[1659280530340,7.5,1699.7,1699.1,0.4419]
[1659280530628,3.514,1699.8,1699.0,6.78346736]
[1659280530770,6.4937,1699.9,1699.1,8.83143714]
[1659280530976,0.05,1699.9,1699.3,3.5]
[1659280531296,8.4292,1700.0,1699.4,6.115]
[1659280531297,0.05,1700.0,1699.4,6.115]
[1659280531486,7.53803,1700.2,1699.6,6.115]
[1659280531689,6.4571,1700.4,1699.6,6.115]
[1659280531895,6.4571,1700.4,1699.6,6.5567]
[1659280532111,7.48803,1700.2,1699.6,6.115]
[1659280532385,6.4571,1700.4,1699.6,6.115]
[1659280532386,9.9711,1700.4,1699.6,6.115]
[1659280532540,9.9711,1700.4,1699.5,0.05]
[1659280532541,11.00203,1700.1,1699.5,0.05]
[1659280532708,3.514,1700.1,1699.5,0.05]
[1659280533029,10.28858919,1700.2,1699.3,0.05]
[1659280533030,0.01335168,1700.0,1699.3,0.05]
[1659280533205,7.50138168,1700.0,1699.3,0.4418]
[1659280533426,1.46993,1701.3,1699.5,6.165]
[1659280533627,11.762,1701.2,1700.6,16.47036694]
[1659280533819,11.762,1701.2,1700.7,8.84622709]
[1659280534196,11.762,1701.2,1700.8,3.0]
[1659280534435,11.762,1701.2,1700.8,9.765]
[1659280534620,11.762,1701.2,1700.5,2.79028755]
[1659280534621,7.48803,1701.1,1700.5,2.79028755]
[1659280534827,7.48803,1700.9,1700.3,0.05]
[1659280535143,0.2,1701.0,1700.2,6.3451016]
[1659280535291,0.2,1701.0,1700.2,3.3]
[1659280535292,7.48803,1700.6,1700.2,3.3]
[1659280535735,8.2762,1700.8,1700.2,6.465]
[1659280535889,8.2762,1700.8,1700.3,3.0]
[1659280535890,8.0762,1700.8,1700.3,3.0]
[1659280536138,8.0762,1700.8,1700.3,3.37251427]
[1659280536339,8.0762,1700.8,1700.4,0.34471435]
[1659280536535,8.0762,1700.8,1700.4,0.64471435]
[1659280537143,15.56423,1700.8,1700.4,0.64471435]
[1659280537391,11.5902,1700.8,1700.4,0.64471435]
[1659280537585,7.48803,1700.7,1700.4,0.64471435]
[1659280537798,11.5902,1700.8,1700.4,3.64471435]
[1659280537948,11.5902,1700.8,1700.4,0.64471435]
[1659280538149,8.22447743,1700.8,1700.4,0.64471435]
[1659280538348,8.42447743,1700.8,1700.4,0.94471435]
[1659280538551,8.42447743,1700.8,1700.5,2.89804672]
[1659280538800,8.42447743,1700.8,1700.4,3.54276107]
[1659280538801,7.48803,1700.7,1700.4,3.54276107]
[1659280539092,0.14827743,1700.8,1700.6,6.20321952]
[1659280539393,0.14827743,1700.8,1700.7,6.24276107]
[1659280539683,11.812,1701.2,1700.7,6.54276107]
[1659280539934,11.762,1701.2,1700.8,3.19804672]
[1659280540132,11.762,1701.2,1700.9,3.0]
[1659280540334,11.762,1701.2,1700.9,3.34471435]
[1659280540898,11.762,1701.2,1701.0,3.20155389]
[1659280541145,11.762,1701.2,1701.1,3.34471435]
[1659280541288,11.762,1701.2,1701.1,3.64471435]
[1659280541488,11.762,1701.2,1701.1,6.54276107]
[1659280542308,11.762,1701.2,1701.1,0.64471435]
[1659280542731,11.762,1701.2,1701.1,0.94471435]
[1659280542888,11.762,1701.2,1701.1,3.54276107]
[1659280543090,11.762,1701.2,1701.1,0.64471435]
[1659280543737,11.762,1701.2,1700.6,0.05]
[1659280543738,19.45003,1701.2,1700.6,0.05]
[1659280543937,19.45003,1701.2,1700.4,0.4915]
[1659280543938,7.48803,1700.9,1700.4,0.4915]
[1659280544139,11.962,1701.2,1700.4,0.4915]
[1659280544140,0.4913,1701.1,1700.4,2.89804672]
[1659280544371,7.48803,1700.9,1700.4,2.89804672]
[1659280544576,7.48803,1700.9,1700.4,3.24276107]
[1659280544777,7.48803,1700.8,1700.4,3.24276107]
[1659280544954,8.1747,1701.0,1700.4,3.24276107]
[1659280544955,8.2247,1701.0,1700.4,3.24276107]
[1659280545127,7.48803,1700.7,1700.4,3.24276107]
[1659280545330,7.48803,1700.6,1700.0,6.6566]
[1659280545570,3.514,1700.8,1700.1,2.89804672]
[1659280545571,7.53803,1700.7,1700.1,2.89804672]
[1659280545771,6.5094,1700.8,1700.1,2.89804672]
[1659280546141,7.48803,1700.6,1700.1,2.89804672]
[1659280546285,7.48803,1700.6,1700.2,0.34471435]
[1659280546468,7.48803,1700.6,1700.2,3.24276107]
[1659280546788,7.48803,1700.5,1700.2,3.24276107]
[1659280546990,7.48803,1700.6,1700.2,3.24276107]
[1659280547144,7.48803,1700.6,1700.3,2.90155533]
[1659280547346,2.9954,1700.8,1700.4,0.34471435]
[1659280548001,7.48803,1700.6,1700.4,0.34471435]
[1659280548390,2.9954,1700.8,1700.4,3.24276107]
[1659280548588,12.1801,1701.0,1700.5,2.89804672]
[1659280548834,7.48803,1700.6,1700.4,0.34471435]
[1659280549178,0.4414,1700.8,1700.4,0.34471435]
[1659280549417,7.48803,1700.7,1700.5,2.89804672]
[1659280549782,12.1801,1701.0,1700.4,3.24276107]
[1659280549980,0.14170434,1700.8,1700.5,2.90155492]
[1659280551518,0.14170434,1700.8,1700.6,2.89804672]
[1659280552147,0.14170434,1700.8,1700.5,2.90155492]
[1659280552307,7.48803,1700.7,1700.4,0.34471435]
[1659280552506,7.48803,1700.7,1700.4,3.54276107]
[1659280552755,0.14170434,1700.8,1700.4,3.54276107]
[1659280552952,0.04723478,1700.7,1700.4,3.54276107]
[1659280554010,7.53526478,1700.7,1700.4,3.54276107]
[1659280554209,0.04723478,1700.7,1700.4,3.54276107]
[1659280554411,7.53526478,1700.7,1700.5,2.89804672]
[1659280556320,7.48803,1700.6,1700.4,3.54276107]
[1659280556521,7.48803,1700.6,1700.4,3.84276107]
[1659280556928,7.48803,1700.6,1700.4,0.94471435]
[1659280557245,0.0944262,1700.7,1700.4,0.64471435]
[1659280557560,0.0944262,1700.7,1700.5,2.89804672]
[1659280557720,7.5824562,1700.7,1700.5,2.89804672]
[1659280557921,7.5824562,1700.7,1700.5,9.06304672]
[1659280558170,0.0944262,1700.7,1700.6,9.40776107]
[1659280558322,0.0944262,1700.7,1700.6,13.64076107]
[1659280558323,0.04723478,1700.7,1700.6,13.64076107]
[1659280558518,0.05,1701.1,1700.6,13.64076107]
[1659280558519,0.05,1701.1,1700.7,1.08216]
[1659280558749,0.05,1701.4,1700.9,14.698]
[1659280558948,2.9121,1701.6,1701.0,12.52061479]
[1659280559148,19.7608,1701.7,1701.0,12.52061479]
[1659280559149,10.109,1701.7,1701.2,6.165]
[1659280559349,3.8422,1702.5,1701.2,6.165]
[1659280559350,0.46215008,1702.9,1702.3,9.06304672]
[1659280559588,3.514,1703.2,1702.4,3.19804672]
[1659280559791,7.48803,1702.6,1702.5,2.89804672]
[1659280560158,2.79233428,1702.9,1702.5,0.34471435]
[1659280560362,7.48803,1702.6,1702.5,0.36086817]
[1659280562295,7.57878706,1702.6,1702.5,0.36086817]
[1659280562583,0.09075706,1702.6,1702.5,0.36086817]
[1659280562787,7.57878706,1702.6,1702.5,0.36086817]
[1659280563017,0.09075706,1702.6,1702.5,0.36086817]
[1659280563214,7.57878706,1702.6,1702.5,0.36086817]
[1659280563679,7.47878706,1702.6,1702.1,0.00233928]
[1659280563879,3.514,1702.7,1702.1,2.900386]
[1659280564083,7.47878706,1702.3,1702.1,0.00233928]
[1659280564314,4.1549,1702.7,1702.1,0.00233928]
[1659280564315,7.47878706,1702.2,1702.1,0.00233928]
[1659280564478,7.47878706,1702.2,1701.7,0.05]
[1659280564479,10.99278706,1702.2,1701.6,0.05]
[1659280564829,7.47878706,1701.9,1701.4,0.05]
[1659280565011,7.47878706,1701.9,1701.6,2.89804672]
[1659280565372,0.05,1702.2,1701.6,2.89804672]
[1659280565573,7.47878706,1701.9,1701.7,6.465]
[1659280565819,7.47878706,1701.9,1701.8,2.89804672]
[1659280566364,7.56954412,1701.9,1701.8,2.89804672]
[1659280566725,0.09075706,1701.9,1701.8,2.89804672]
[1659280567241,7.56954412,1701.9,1701.8,2.89804672]
[1659280568434,0.09075706,1701.9,1701.8,2.89804672]
[1659280568826,7.56954412,1701.9,1701.8,2.89804672]
[1659280569025,7.52416559,1701.9,1701.7,0.96876901]
[1659280569224,7.52416559,1701.9,1701.7,0.66876901]
[1659280569514,0.04537853,1701.9,1701.8,9.06304672]
[1659280570330,0.04537853,1701.9,1701.8,12.06304672]
[1659280571016,0.04537853,1701.9,1701.8,5.89804672]
[1659280572825,0.04537853,1701.9,1701.8,3.0]
[1659280573146,0.04537853,1701.9,1701.7,0.66876901]
[1659280573346,0.04537853,1701.9,1701.7,3.56681573]
[1659280573666,0.04537853,1701.9,1701.3,6.215]
[1659280573667,7.47878706,1701.8,1701.3,6.215]
[1659280573894,7.47878706,1701.8,1701.5,0.34471435]
[1659280574076,7.47878706,1701.8,1701.6,2.89804672]
[1659280574467,7.47878706,1701.8,1701.5,0.34471435]
[1659280574863,7.47878706,1701.8,1701.5,0.64471435]
[1659280575277,7.47878706,1701.8,1701.6,9.06304672]
[1659280575598,7.47878706,1701.8,1701.7,3.24276107]
[1659280576654,0.04537853,1701.9,1701.7,10.00776107]
[1659280576856,0.04537853,1701.9,1701.8,5.89804672]
[1659280577099,0.04537853,1701.9,1701.8,5.95280488]
[1659280578049,0.04537853,1701.9,1701.8,7.18580488]
[1659280580008,0.05,1702.3,1701.8,13.35080488]
[1659280580227,0.05,1702.5,1701.9,9.40776107]
[1659280580440,9.8255,1702.5,1702.0,3.25279844]
[1659280580636,9.8255,1702.5,1702.2,1.233]
[1659280580835,2.87137853,1702.6,1702.3,3.24276107]
[1659280581118,2.87137853,1702.6,1702.4,3.21613072]
[1659280581119,0.04537853,1702.6,1702.4,3.21613072]
[1659280581349,0.04537853,1702.6,1702.5,9.36304672]
[1659280581681,0.04537853,1702.6,1702.5,13.14876107]
[1659280581993,0.04537853,1702.6,1702.5,12.70776107]
[1659280582465,0.04537853,1702.6,1702.5,13.94076107]
[1659280582792,0.05,1703.0,1702.5,21.11674543]
[1659280582954,0.05,1703.2,1702.9,6.165]
[1659280583147,0.05,1703.2,1702.8,1.234]
[1659280583148,11.5,1703.4,1703.0,9.70776107]
[1659280583347,11.5,1703.4,1703.1,2.89804672]
[1659280583537,7.47878706,1703.3,1703.1,3.19804672]
[1659280583742,7.47878706,1703.3,1703.2,2.89804672]
[1659280584450,7.47878706,1703.3,1703.2,6.19804672]
[1659280585144,7.47878706,1703.3,1703.2,3.3]
[1659280585302,7.47878706,1703.3,1703.2,6.19804672]
[1659280586692,7.5284,1703.3,1703.2,6.19804672]
[1659280587081,0.04961294,1703.3,1703.2,6.19804672]
[1659280588938,7.5284,1703.3,1703.2,6.19804672]
[1659280589685,0.04961294,1703.3,1703.2,12.36304672]
[1659280590391,0.00061294,1703.3,1703.2,7.43104672]
[1659280590596,0.05,1703.7,1703.2,7.43104672]
[1659280590597,0.05,1703.7,1703.3,0.2053211]
[1659280590789,0.05,1703.9,1703.6,18.59604672]
[1659280591027,7.77878706,1704.0,1703.7,12.06304672]
[1659280591243,0.3,1704.0,1703.9,4.734]
[1659280591443,0.3,1704.0,1703.9,10.93204672]
[1659280591589,0.3,1704.0,1703.9,8.07676107]
[1659280591789,0.3,1704.0,1703.9,5.17871435]
[1659280592019,7.77878706,1704.0,1703.9,3.94471435]
[1659280592231,7.77878706,1704.0,1703.9,6.54276107]
[1659280592669,0.3,1704.0,1703.9,6.54276107]
[1659280593989,7.77878706,1704.0,1703.9,6.54276107]
[1659280594634,7.82599593,1704.0,1703.9,6.54276107]
[1659280597032,0.34720887,1704.0,1703.9,6.54276107]
[1659280597239,0.34720887,1704.0,1703.9,12.70776107]
[1659280597420,7.82599593,1704.0,1703.9,12.70776107]
[1659280598413,8.41499593,1704.0,1703.7,0.29326]
[1659280598609,8.41499593,1704.0,1703.7,3.19130672]
[1659280598610,7.47878706,1703.8,1703.7,3.19130672]
[1659280599039,7.47878706,1703.8,1703.7,2.89804672]
[1659280600752,7.52728308,1703.8,1703.7,2.89804672]
[1659280600916,7.52728308,1703.8,1703.7,3.19804672]
[1659280601945,8.11628308,1703.8,1703.7,0.3]
[1659280602633,7.52728308,1703.8,1703.5,10.40307435]
[1659280602811,7.52728308,1703.8,1703.6,2.89804672]
[1659280602812,0.04849602,1703.8,1703.6,2.89804672]
[1659280603011,7.47878706,1703.7,1703.6,2.89804672]
[1659280603254,7.47878706,1703.7,1703.6,5.89804672]
[1659280606195,7.47878706,1703.7,1703.6,3.0]
[1659280606889,7.47878706,1703.7,1703.5,0.59334]
[1659280607057,7.47878706,1703.7,1703.5,3.49138672]
[1659280607245,7.47878706,1703.7,1703.6,3.3]
[1659280607452,0.04849602,1703.8,1703.1,13.047135]
[1659280607748,7.47878706,1703.3,1703.1,2.89804672]
[1659280607904,3.9547,1703.7,1703.1,2.89804672]
[1659280607905,7.47878706,1703.2,1703.1,2.89804672]
[1659280608558,7.47878706,1703.2,1702.8,2.89804672]
[1659280608758,0.05,1703.4,1702.8,9.06304672]
[1659280608957,17.4421,1703.6,1702.8,9.06304672]
[1659280608958,7.47878706,1703.0,1702.9,2.89804672]
[1659280609881,0.04849602,1703.2,1702.9,2.89804672]
[1659280610091,7.47878706,1703.0,1702.9,3.19148672]
[1659280610500,7.47878706,1703.0,1702.9,6.79148672]
[1659280611180,0.04849602,1703.2,1702.9,6.79148672]
[1659280611531,0.04849602,1703.2,1703.0,5.89804672]
[1659280613105,0.4907,1703.5,1703.0,5.89804672]
[1659280613334,7.47878706,1703.1,1703.0,5.89804672]
[1659280615428,0.4907,1703.5,1703.0,5.89804672]
[1659280615607,7.47878706,1703.1,1703.0,5.89804672]
[1659280616122,0.4907,1703.5,1703.0,5.89804672]
[1659280616440,0.4907,1703.5,1703.0,6.24276107]
[1659280616441,0.4407,1703.5,1703.0,6.24276107]
[1659280616751,0.4407,1703.5,1703.0,8.00322107]
[1659280616752,7.47878706,1703.3,1703.0,8.00322107]
[1659280616919,7.47878706,1703.3,1703.1,2.89804672]
[1659280617123,7.47878706,1703.3,1703.2,3.0]
[1659280617316,7.47878706,1703.3,1703.2,6.19804672]
[1659280617555,7.47878706,1703.3,1703.2,6.49141672]
[1659280617911,13.7281,1703.6,1703.2,7.95825672]
[1659280618104,7.47878706,1703.3,1703.2,7.95825672]
[1659280618307,7.47878706,1703.3,1703.2,8.16361842]
[1659280620834,7.52728308,1703.4,1703.2,8.16361842]
[1659280621219,7.52352651,1703.4,1703.2,8.16361842]
[1659280621522,0.63373945,1703.4,1703.2,8.16361842]
[1659280621755,7.47878706,1703.3,1703.2,6.49141672]
[1659280622550,0.04473945,1703.4,1703.2,6.49141672]
[1659280623035,7.52352651,1703.4,1703.3,2.89804672]
[1659280624011,0.04473945,1703.4,1703.3,2.89804672]
[1659280625151,7.52352651,1703.4,1703.3,2.89804672]
[1659280625541,0.04473945,1703.4,1703.3,2.89804672]
[1659280626120,7.52352651,1703.4,1703.3,2.89804672]
[1659280626332,0.04473945,1703.4,1703.3,2.89804672]
[1659280627168,7.52352651,1703.4,1703.3,2.89804672]
[1659280627374,7.52352651,1703.4,1703.3,2.84804672]
[1659280628161,0.04473945,1703.4,1703.3,2.84804672]
[1659280628386,7.52352651,1703.4,1703.3,2.84804672]
[1659280629594,0.04473945,1703.4,1703.3,2.84804672]
[1659280630149,0.04473945,1703.4,1703.2,8.16378112]
[1659280630468,7.47878706,1703.3,1703.2,6.49141672]
[1659280630869,7.47878706,1703.3,1703.2,6.19804672]
[1659280631985,7.47878706,1703.3,1703.2,3.3]
[1659280632187,7.67878706,1703.3,1702.7,0.22919279]
[1659280632389,7.67878706,1703.3,1702.8,2.89804672]
[1659280632390,14.011,1703.3,1702.8,2.89804672]
[1659280632582,7.47878706,1702.9,1702.8,2.89804672]
[1659280632971,7.47878706,1702.9,1702.6,3.19155672]
[1659280633204,7.47878706,1702.8,1702.7,2.89804672]
[1659280633763,7.47878706,1702.8,1702.5,2.89804672]
[1659280633967,7.47878706,1702.6,1702.5,2.89804672]
[1659280635020,7.47878706,1702.6,1702.5,6.19804672]
[1659280635233,7.47878706,1702.6,1702.5,6.49804672]
[1659280636386,7.47878706,1702.6,1702.5,6.79157672]
[1659280638015,0.8908,1703.0,1702.5,6.79157672]
[1659280638185,0.4,1703.0,1702.5,6.79157672]
[1659280638384,7.47878706,1702.6,1702.5,6.79157672]
[1659280640213,0.05,1703.0,1702.5,6.79157672]
[1659280640549,0.4408,1703.2,1703.0,6.465]
[1659280640550,0.05,1703.2,1703.0,6.465]
[1659280640833,7.47878706,1703.7,1703.2,6.165]
[1659280641142,0.3,1704.0,1703.5,7.399]
[1659280641288,0.3,1704.0,1703.6,6.19804672]
[1659280641488,0.3,1704.0,1703.7,3.19804672]
[1659280641708,0.3,1704.0,1703.8,6.19804672]
[1659280641999,0.3,1704.0,1703.9,2.89804672]
[1659280644028,0.3,1704.0,1703.9,9.06304672]
[1659280644226,0.3,1704.0,1703.9,13.29604672]
[1659280645941,0.35416418,1704.0,1703.9,13.29604672]
[1659280655920,1.57516418,1704.0,1703.9,2.89804672]
[1659280656241,1.57516418,1704.0,1703.8,1.6715026]
[1659280656242,9.05395124,1704.0,1703.8,2.89804672]
[1659280656447,1.57516418,1704.0,1703.8,2.89804672]
[1659280656654,7.47878706,1703.9,1703.8,2.89804672]
[1659280657690,7.47878706,1703.9,1703.8,6.49804672]
[1659280660848,7.47677391,1703.9,1703.8,6.49804672]
[1659280663159,7.37677391,1703.9,1703.8,6.49804672]
[1659280663367,7.37677391,1703.9,1703.8,7.96444672]
[1659280665869,0.35416418,1704.0,1703.8,7.96444672]
[1659280666072,7.37677391,1703.9,1703.8,7.96444672]
[1659280667450,7.37677391,1703.9,1703.8,8.16976392]
[1659280668403,0.35416418,1704.0,1703.8,8.16976392]
[1659280668556,0.35416418,1704.0,1703.9,3.0]
[1659280669081,0.35416418,1704.0,1703.8,5.16976392]
[1659280669082,8.36293809,1704.0,1703.8,5.16976392]
[1659280669254,8.36293809,1704.0,1703.7,3.57104435]
[1659280669255,7.37677391,1703.9,1703.7,3.3]
[1659280669455,7.37677391,1703.8,1703.6,0.29703333]
[1659280669667,7.37677391,1703.7,1703.6,2.90171005]
[1659280670092,7.37677391,1703.7,1703.6,0.00366333]
[1659280670302,7.37677391,1703.7,1703.3,1.34471435]
[1659280670465,4.0119,1703.9,1703.4,2.89804672]
[1659280670676,7.37677391,1703.5,1703.4,2.89804672]
[1659280671385,7.37677391,1703.5,1703.4,3.49804672]
[1659280671573,7.37677391,1703.5,1703.4,6.49804672]
[1659280674085,7.37677391,1703.5,1703.4,6.49583459]
[1659280674662,7.37677391,1703.5,1703.4,3.59778787]
[1659280674863,7.37677391,1703.5,1703.4,0.29778787]
[1659280675085,7.37677391,1703.5,1703.3,3.64471435]
[1659280675301,7.37677391,1703.5,1703.3,6.54276107]
[1659280675520,7.37677391,1703.4,1703.3,6.54276107]
[1659280676298,7.37677391,1703.4,1703.3,6.84276107]
[1659280676519,7.37677391,1703.4,1703.3,3.94471435]
[1659280676678,7.37677391,1703.4,1703.3,0.94471435]
[1659280678010,7.37677391,1703.4,1703.3,2.41171435]
[1659280678585,7.37677391,1703.4,1703.3,1.467]
[1659280678799,7.37677391,1703.4,1703.1,3.89339]
[1659280678966,7.37677391,1703.4,1703.1,3.79143672]
[1659280679170,0.2,1703.2,1703.1,3.49804672]
[1659280679398,0.2,1703.2,1703.1,6.49804672]
[1659280680142,7.57677391,1703.2,1703.1,6.49804672]
[1659280680520,7.37677391,1703.2,1703.1,6.49804672]
[1659280680722,0.04823936,1703.4,1703.1,12.66304672]
[1659280680931,0.04823936,1703.4,1703.3,10.30504672]
[1659280681133,0.04823936,1703.4,1703.3,13.86375208]
[1659280681341,0.04823936,1703.4,1703.3,17.68811477]
[1659280681521,0.04823936,1703.4,1703.3,17.78811477]
[1659280682145,0.00023936,1703.4,1703.3,17.78811477]
[1659280683262,0.05,1703.8,1703.3,18.08811477]
[1659280683549,0.35,1704.0,1703.8,6.765]
[1659280683758,0.3,1704.0,1703.9,13.64976107]
[1659280684628,0.3,1704.0,1703.9,3.0]
[1659280684830,0.3,1704.0,1703.8,0.6]
[1659280684831,7.67677391,1704.0,1703.8,0.6]
[1659280685023,0.3,1704.0,1703.8,3.19804672]
[1659280685224,0.3,1704.0,1703.9,3.3]
[1659280685431,7.67677391,1704.0,1703.9,3.3]
[1659280685613,0.2,1703.7,1703.4,0.05]
[1659280685850,7.37677391,1703.6,1703.5,2.89804672]
[1659280686214,0.4406,1704.1,1703.6,7.376]
[1659280686420,3.1968,1704.6,1704.0,5.33939677]
[1659280686615,12.2852,1704.9,1704.5,1.24]
[1659280686901,7.37677391,1704.6,1704.5,4.13804672]
[1659280687081,7.37677391,1704.6,1704.5,7.38804672]
[1659280687249,7.30256391,1704.6,1704.5,7.97515672]
[1659280688370,9.3461,1704.9,1704.5,14.48853247]
[1659280688572,9.3461,1704.9,1704.6,6.19116672]
[1659280688775,6.94270391,1704.7,1704.6,3.36359]
[1659280689056,6.94270391,1704.7,1704.6,6.77056132]
[1659280689803,9.3461,1704.9,1704.6,6.77056132]